lending/lending_fUSD_20240110
["ID","MTS","AMOUNT","RATE_DAILY","PERIOD"]
[311126706,1704924643240,-162.08468209,0.0003097,2]
[311126707,1704924643250,-769.44451682,0.00030999,4]
[311126709,1704924643259,-500.0,0.00031,3]
[311126710,1704924643269,-206.81,0.00031,2]
[311126711,1704924643279,-153.84,0.0003105,2]
[311126712,1704924643288,-157.43,0.00031175,2]
[311126714,1704924643297,-163.01,0.00031293,2]
[311126715,1704924643307,-500.0,0.000315,2]
[311126718,1704924643316,-221.26,0.00031507,2]
[311126720,1704924643325,-25571.2141439,0.000318,2]
[311126721,1704924643334,-163.01,0.00031873,2]
[311126722,1704924643343,-500.0,0.000319,2]
[311126723,1704924643352,-32497.9173,0.000319,2]
[311126725,1704924643361,-150.70065329,0.00031937,2]
[311126727,1704924643371,-153.84,0.00031963,2]
[311126729,1704924643380,-19320.8731597,0.0003199,4]
[311126731,1704924643389,-386.41746319,0.0003199,4]
[311126733,1704924643398,-1011.68,0.0003199,2]
[311126735,1704924643407,-65244.81995539,0.00032,2]
[311126737,1704924643418,-166.08,0.00032037,2]
[311126739,1704924643427,-450.94,0.00032152,2]
[311126741,1704924643436,-247.51403511,0.00032161,5]
[311126743,1704924643445,-157.43,0.00032229,2]
[311126745,1704924643457,-162.08468209,0.00032315,2]
[311126747,1704924643466,-150.70065311,0.00032425,2]
[311126749,1704924643475,-200.0,0.00032448,2]
[311126751,1704924643485,-903.81,0.000325,14]
[311126753,1704924643494,-375.26819316,0.00032614,6]
[311126755,1704924643503,-151.0,0.00032702,120]
[311126757,1704924643512,-204.0,0.00032852,2]
[311126759,1704924643521,-16314.373,0.00032873,2]
[311126761,1704924643530,-41885.0,0.00032873,2]
[311126763,1704924643539,-4002.437,0.00032873,2]
[311126765,1704924643549,-2264.0,0.00032873,2]
[311126767,1704924643558,-1303.577,0.00032873,2]
[311126769,1704924643567,-150.0,0.00032873,2]
[311126771,1704924643577,-153.84,0.00032877,2]
[311126773,1704924643586,-365.44,0.00032877,15]
[311126775,1704924643595,-491.26,0.00032877,2]
[311126776,1704924643606,-315.61,0.00032877,2]
[311126777,1704924643616,-3194.53,0.00032877,2]
[311126778,1704924643625,-150.70065311,0.00032912,2]
[311126779,1704924643634,-550.0,0.00033,3]
[311126780,1704924643645,-157.43,0.00033282,2]
[311126781,1704924643654,-150.0,0.00033328,2]
[311126782,1704924643664,-151.0,0.0003337,30]
[311126783,1704924643684,-606.40111,0.00033398,4]
[311126784,1704924643695,-1000.0,0.000334,2]
[311126785,1704924643707,-150.70065311,0.000334,2]
[311126786,1704924643717,-777.40111,0.00033498,4]
[311126787,1704924643726,-150.0,0.00033514,2]
[311126788,1704924643736,-152.0,0.00033553,3]
[311126789,1704924643746,-794.40111,0.00033598,4]
[311126790,1704924643756,-150.0,0.00033658,2]
[311126791,1704924643766,-162.08468209,0.0003366,2]
[311126792,1704924643776,-888.40111,0.00033698,4]
[311126793,1704924643786,-153.84,0.0003379,2]
[311126794,1704924643796,-888.40111,0.00033798,4]
[311126795,1704924643805,-151.0,0.00033841,7]
[311126796,1704924643815,-151.0,0.00033841,7]
[311126797,1704924643825,-151.0,0.00033841,7]
[311126798,1704924643840,-258.377754,0.00033841,7]
[311126799,1704924643849,-258.377754,0.00033841,7]
[311126800,1704924643859,-151.0,0.00033841,7]
[311126801,1704924643870,-160.0,0.00033861,120]
[311126802,1704924643880,-150.0,0.00033885,2]
[311126803,1704924643890,-150.70065311,0.00033888,2]
[311126804,1704924643900,-888.40111,0.00033898,4]
[311126805,1704924643910,-594.97419689,0.00033997,2]
[311126806,1704924643921,-888.40111,0.00033998,4]
[311126807,1704924643931,-1000.0,0.00034,4]
[311126808,1704924643942,-176.01,0.00034,2]
[311126809,1704924643954,-151.0,0.00034051,7]
[311126810,1704924643964,-800.0,0.00034062,2]
[311126811,1704924643975,-165.87919785,0.00034083,2]
[311126812,1704924643984,-888.40111,0.00034098,4]
[311126813,1704924643994,-1354.0,0.00034183,2]
[311126814,1704924644004,-262.744,0.00034183,2]
[311126815,1704924644014,-2218.428,0.00034183,2]
[311126816,1704924644024,-833.0,0.00034183,2]
[311126817,1704924644034,-154.823,0.00034183,2]
[311126818,1704924644043,-1849.0,0.00034183,2]
[311126819,1704924644053,-944.0,0.00034183,2]
[311126820,1704924644062,-700.0,0.00034183,2]
[311126821,1704924644072,-1234.0,0.00034183,2]
[311126822,1704924644081,-1254.0,0.00034183,2]
[311126823,1704924644093,-774.135,0.00034183,2]
[311126824,1704924644102,-235.0,0.00034183,2]
[311126825,1704924644112,-424.0,0.00034183,2]
[311126826,1704924644122,-370.927,0.00034183,2]
[311126827,1704924644131,-162.505,0.00034183,2]
[311126828,1704924644140,-888.40111,0.00034198,4]
[311126829,1704924644150,-500.0,0.000342,2]
[311126830,1704924644160,-310.0,0.000342,2]
[311126831,1704924644169,-200.0,0.00034236,2]
[311126832,1704924644178,-887.14740553,0.00034298,14]
[311126833,1704924644188,-888.40111,0.00034298,4]
[311126834,1704924644197,-1273.67944037,0.0003431,2]
[311126835,1704924644209,-157.43,0.00034336,2]
[311126836,1704924644219,-150.70065311,0.00034376,2]
[311126837,1704924644228,-888.40111,0.00034398,4]
[311126838,1704924644238,-450.94,0.00034416,2]
[311126839,1704924644247,-247.51403511,0.00034421,8]
[311126840,1704924644256,-151.0,0.00034438,7]
[311126841,1704924644266,-888.40111,0.00034498,4]
[311126842,1704924644275,-544.852235,0.0003452,2]
[311126843,1704924644285,-4382.297142,0.0003452,2]
[311126844,1704924644294,-1743.527153,0.0003452,2]
[311126845,1704924644303,-14023.350855,0.0003452,2]
[311126846,1704924644312,-3929.33,0.00034521,2]
[311126847,1704924644322,-150.0,0.00034524,2]
[311126848,1704924644331,-176.01,0.00034548,2]
[311126849,1704924644341,-888.40111,0.00034598,4]
[311126850,1704924644351,-180.0,0.00034658,2]
[311126851,1704924644360,-1273.67944037,0.00034676,2]
[311126852,1704924644369,-888.40111,0.00034698,4]
[311126853,1704924644379,-153.84,0.00034703,2]
[311126854,1704924644388,-221.26,0.00034703,2]
[311126855,1704924644397,-151.0,0.00034746,4]
[311126856,1704924644407,-1011.68,0.00034773,2]
[311126857,1704924644416,-1011.68,0.00034776,2]
[311126858,1704924644426,-1011.68,0.00034776,2]
[311126859,1704924644435,-182.58434731,0.00034781,2]
[311126860,1704924644445,-24308.45184338,0.00034782,4]
[311126861,1704924644457,-376.11195413,0.00034783,4]
[311126862,1704924644467,-5934.02336404,0.00034783,2]
[311126863,1704924644476,-5267.87132319,0.00034783,4]
[311126864,1704924644486,-246.41184057,0.00034783,4]
[311126865,1704924644495,-11072.80426531,0.00034783,4]
[311126866,1704924644509,-4915.9331635,0.00034783,4]
[311126867,1704924644714,-6454.27053871,0.00034784,3]
[311126868,1704924644728,-196.11052816,0.00034784,4]
[311126869,1704924644737,-214.72509252,0.00034784,4]
[311126870,1704924644746,-5188.5902469,0.00034784,4]
[311126871,1704924644755,-1382.70500368,0.00034785,4]
[311126872,1704924644765,-155.36858348,0.00034785,4]
[311126873,1704924644774,-841.40945132,0.00034785,4]
[311126874,1704924644784,-155.0,0.00034785,4]
[311126875,1704924644793,-245000.0,0.00034786,2]
[311126876,1704924644802,-100000.0,0.00034786,2]
[311126877,1704924644812,-789.7371,0.00034786,2]
[311126878,1704924644821,-702.1757,0.00034786,2]
[311126879,1704924644832,-37786.5775,0.00034786,2]
[311126880,1704924644841,-1000.0,0.00034786,2]
[311126881,1704924644851,-151.0,0.00034786,7]
[311126882,1704924644860,-184.095286,0.00034786,7]
[311126883,1704924644869,-990.0,0.00034786,30]
[311126884,1704924644878,-1129.176011,0.00034786,30]
[311126885,1704924644888,-151.0,0.00034786,7]
[311126886,1704924644897,-151.0,0.00034786,7]
[311126887,1704924644907,-151.0,0.00034786,7]
[311126888,1704924644917,-151.0,0.00034786,7]
[311126889,1704924644926,-246.795846,0.00034786,7]
[311126890,1704924644936,-151.0,0.00034786,7]
[311126891,1704924644945,-151.0,0.00034786,7]
[311126892,1704924644956,-151.0,0.00034786,7]
[311126893,1704924644967,-151.0,0.00034786,7]
[311126894,1704924644976,-258.377754,0.00034786,7]
[311126895,1704924644985,-258.377754,0.00034786,7]
[311126896,1704924644994,-151.0,0.00034786,7]
[311126897,1704924645003,-151.0,0.00034786,7]
[311126898,1704924645013,-151.0,0.00034786,7]
[311126899,1704924645022,-151.0,0.00034786,7]
[311126900,1704924645031,-817.278353,0.00034794,2]
[311126901,1704924645040,-6573.445713,0.00034794,2]
[311126902,1704924645049,-2615.29073,0.00034794,2]
[311126903,1704924645059,-21035.026283,0.00034794,2]
[311126904,1704924645068,-17705.0,0.00034795,4]
[311126905,1704924645078,-888.40111,0.00034798,4]
[311126906,1704924645087,-150.70065311,0.00034863,2]
[311126907,1704924645097,-150.0,0.0003488,2]
[311126908,1704924645109,-198.38871232,0.00034897,2]
[311126909,1704924645119,-888.40111,0.00034898,4]
[311126910,1704924645129,-1070.51683108,0.00034898,2]
[311126911,1704924645138,-644.06577958,0.00034898,2]
[311126912,1704924645148,-2222.67999183,0.00034898,2]
[311126913,1704924645157,-943.31489532,0.00034899,2]
[311126914,1704924645167,-394.82081586,0.00034899,2]
[311126915,1704924645176,-614.41737351,0.000349,2]
[311126916,1704924645186,-614.41737333,0.000349,2]
[311126917,1704924645195,-614.41737333,0.000349,2]
[311126918,1704924645209,-614.41737333,0.000349,2]
[311126919,1704924645218,-150.0,0.00034925,2]
[311126920,1704924645228,-151.0,0.00034931,7]
[311126921,1704924645237,-151.0,0.00034931,7]
[311126922,1704924645248,-151.0,0.00034931,7]
[311126923,1704924645259,-151.0,0.00034931,7]
[311126924,1704924645269,-151.0,0.00034931,7]
[311126925,1704924645279,-151.0,0.00034931,7]
[311126926,1704924645290,-151.0,0.00034931,7]
[311126927,1704924645299,-258.377754,0.00034931,7]
[311126928,1704924645310,-258.377754,0.00034931,7]
[311126929,1704924645321,-151.0,0.00034931,7]
[311126930,1704924645333,-151.0,0.00034931,7]
[311126931,1704924645342,-151.0,0.00034931,7]
[311126932,1704924645352,-1089.70447,0.00034931,2]
[311126933,1704924645362,-8764.594284,0.00034931,2]
[311126934,1704924645371,-3487.054307,0.00034931,2]
[311126935,1704924645380,-28046.701711,0.00034931,2]
[311126936,1704924645389,-200.0,0.00034964,7]
[311126937,1704924645398,-2636.0,0.00034986,4]
[311126938,1704924645410,-1011.68,0.00034987,2]
[311126939,1704924645419,-1011.68,0.0003499,2]
[311126940,1704924645429,-430.5877192,0.00034997,4]
[311126941,1704924645439,-155.0,0.00034997,4]
[311126942,1704924645450,-262.84030059,0.00034997,4]
[311126943,1704924645461,-179.32441234,0.00034997,4]
[311126944,1704924645471,-471.80282371,0.00034997,4]
[311126945,1704924645481,-158.10336993,0.00034997,4]
[311126946,1704924645490,-68044.58310446,0.00034997,4]
[311126947,1704924645501,-217.72760639,0.00034997,4]
[311126948,1704924645510,-289.81984023,0.00034997,4]
[311126949,1704924645519,-323.32950952,0.00034997,4]
[311126950,1704924645528,-399.70065492,0.00034997,4]
[311126951,1704924645538,-172.572655,0.00034997,7]
[311126952,1704924645549,-151.0,0.00034997,7]
[311126953,1704924645559,-151.0,0.00034997,7]
[311126954,1704924645569,-170.81442944,0.00034998,4]
[311126955,1704924645578,-18967.28816713,0.00034998,4]
[311126956,1704924645588,-888.40111,0.00034998,4]
[311126957,1704924645597,-168.19423,0.00034998,2]
[311126958,1704924645606,-2136.08960768,0.00034999,4]
[311126959,1704924645615,-72703.64858357,0.00034999,4]
[311126961,1704924645626,-100000.0,0.00035,2]
[311126962,1704924645635,-151.0,0.00035,7]
[311126963,1704924645645,-151.0,0.00035,7]
[311126964,1704924645655,-151.0,0.00035,7]
[311126965,1704924645664,-151.0,0.00035,7]
[311126966,1704924645673,-151.0,0.00035,7]
[311126967,1704924645682,-258.377754,0.00035,7]
[311126968,1704924645692,-258.377754,0.00035,7]
[311126970,1704924645707,-151.0,0.00035,7]
[311126972,1704924645716,-16417.45689362,0.00035,2]
[311126974,1704924645725,-519.54844331,0.00035,4]
[311126976,1704924645734,-255.06116576,0.00035,4]
[311126978,1704924645744,-84544.13674758,0.00035,4]
[311126980,1704924645754,-861.27377209,0.00035,2]
[311126982,1704924645763,-1256.27533242,0.00035,4]
[311126984,1704924645774,-2500.0,0.00035,2]
[311126986,1704924645784,-9428.76531599,0.00035,2]
[311126988,1704924645793,-155.0,0.00035,2]
[311126990,1704924645802,-172.088388,0.00035,7]
[311126992,1704924645812,-151.0,0.00035,7]
[311126994,1704924645821,-600.0,0.00035,3]
[311126995,1704924645832,-231.95187132,0.00035,2]
[311126996,1704924645842,-197.42320904,0.00035,2]
[311126998,1704924645851,-227.133194,0.00035,2]
[311127000,1704924645860,-3398.10895983,0.00035,2]
[311127002,1704924645870,-230.01310602,0.00035,2]
[311127004,1704924645879,-549.49624435,0.00035,2]
[311127006,1704924645889,-48914.92,0.00035005,3]
[311127008,1704924645899,-162.08468209,0.00035005,2]
[311127010,1704924645908,-150.0,0.00035024,2]
[311127012,1704924645917,-375.26819316,0.00035043,7]
[311127013,1704924645926,-1362.130588,0.00035068,2]
[311127015,1704924645935,-10955.742855,0.00035068,2]
[311127016,1704924645945,-4358.817884,0.00035068,2]
[311127017,1704924645956,-35058.377138,0.00035068,2]
[311127018,1704924645965,-1273.67944037,0.00035079,2]
[311127019,1704924645974,-176.01,0.00035096,2]
[311127020,1704924645983,-888.40111,0.00035098,4]
[311127021,1704924645992,-196.0,0.00035105,7]
[311127022,1704924646001,-187.107016,0.00035105,7]
[311127023,1704924646011,-151.0,0.00035105,7]
[311127024,1704924646020,-229.385381,0.00035105,7]
[311127025,1704924646033,-151.0,0.00035105,7]
[311127026,1704924646047,-151.0,0.00035105,7]
[311127027,1704924646063,-258.377754,0.00035105,7]
[311127028,1704924646076,-258.377754,0.00035105,7]
[311127029,1704924646088,-50000.0,0.00035105,10]
[311127030,1704924646105,-428.91704251,0.00035105,10]
[311127031,1704924646118,-7897.5091503,0.00035105,10]
[311127032,1704924646133,-67037.70125054,0.00035105,10]
[311127033,1704924646146,-7595.64031783,0.00035105,10]
[311127034,1704924646159,-969.66922082,0.00035108,2]
[311127035,1704924646173,-150.0,0.00035116,2]
[311127036,1704924646187,-888.40111,0.00035198,4]
[311127037,1704924646198,-155.13,0.00035238,2]
[311127038,1704924646212,-344.25895787,0.00035242,2]
[311127039,1704924646225,-888.40111,0.00035298,4]
[311127040,1704924646238,-594.97419689,0.00035339,2]
[311127041,1704924646250,-1906.982823,0.00035342,2]
[311127042,1704924646262,-15338.039997,0.00035342,2]
[311127043,1704924646276,-6102.345038,0.00035342,2]
[311127044,1704924646296,-49081.727994,0.00035342,2]
[311127045,1704924646308,-150.70065311,0.00035351,2]
[311127046,1704924646318,-150.0,0.00035379,2]
[311127047,1704924646329,-157.43,0.0003539,2]
[311127048,1704924646344,-888.40111,0.00035398,4]
[311127049,1704924646365,-150.0,0.00035425,2]
[311127050,1704924646378,-157.54,0.00035429,2]
[311127053,1704924646390,-151.0,0.00035455,2]
[311127056,1704924646402,-888.40111,0.00035498,4]
[311127058,1704924646414,-150.0,0.00035558,2]
[311127059,1704924646427,-204.0,0.00035567,7]
[311127060,1704924646439,-150.0,0.00035576,2]
[311127061,1704924646454,-888.40111,0.00035598,4]
[311127062,1704924646467,-2179.408941,0.000356,2]
[311127063,1704924646480,-6974.108615,0.000356,2]
[311127064,1704924646493,-750.0,0.000356,2]
[311127065,1704924646504,-1273.67944037,0.00035606,2]
[311127066,1704924646514,-176.92113003,0.00035616,2]
[311127067,1704924646524,-153.84,0.00035616,2]
[311127068,1704924646535,-150.0,0.00035616,2]
[311127069,1704924646547,-176.01,0.00035644,2]
[311127070,1704924646559,-150.0,0.00035693,2]
[311127071,1704924646571,-888.40111,0.00035698,4]
[311127072,1704924646584,-168.19423,0.0003572,2]
[311127073,1704924646597,-178.0,0.00035744,5]
[311127074,1704924646607,-155.13,0.00035781,2]
[311127075,1704924646618,-3929.33,0.00035798,2]
[311127076,1704924646628,-888.40111,0.00035798,4]
[311127077,1704924646639,-150.70065311,0.00035839,2]
[311127078,1704924646650,-888.40111,0.00035898,4]
[311127079,1704924646662,-9208.50091281,0.000359,2]
[311127080,1704924646673,-658.99495069,0.000359,8]
[311127081,1704924646684,-150.0,0.00035904,2]
[311127082,1704924646696,-425.80357612,0.00035934,8]
[311127083,1704924646709,-425.80357605,0.00035934,8]
[311127084,1704924646724,-425.80357605,0.00035934,8]
[311127085,1704924646735,-425.80357605,0.00035934,8]
[311127086,1704924646747,-425.80357605,0.00035934,8]
[311127087,1704924646758,-150.0,0.00035974,2]
[311127088,1704924646770,-181.59497969,0.00035989,2]
[311127089,1704924646781,-1000.0,0.00035996,2]
[311127090,1704924646793,-888.40111,0.00035998,6]
[311127091,1704924646805,-502.26792189,0.00035999,2]
[311127092,1704924646817,-426.79203824,0.00035999,2]
[311127093,1704924646829,-500.0,0.00035999,2]
[311127094,1704924646841,-500.0,0.00035999,2]
[311127095,1704924646852,-629.90267663,0.00035999,2]
[311127096,1704924646864,-300.0,0.00035999,2]
[311127097,1704924646874,-100000.0,0.00036,3]
[311127098,1704924646886,-151.0,0.00036,7]
[311127099,1704924646898,-88374.5960675,0.00036,4]
[311127100,1704924646910,-8500.32,0.00036,2]
[311127101,1704924646920,-151.0,0.00036,7]
[311127102,1704924646933,-151.0,0.00036,7]
[311127103,1704924646944,-258.377754,0.00036,7]
[311127104,1704924646957,-258.377754,0.00036,7]
[311127105,1704924646969,-150.39,0.00036,2]
[311127106,1704924646981,-150.39,0.00036,2]
[311127107,1704924646992,-150.39,0.00036,2]
[311127108,1704924647004,-150.39,0.00036,2]
[311127109,1704924647015,-150.39,0.00036,2]
[311127110,1704924647027,-150.39,0.00036,2]
[311127111,1704924647039,-150.39,0.00036,2]
[311127112,1704924647052,-150.39,0.00036,2]
[311127113,1704924647063,-150.39,0.00036,2]
[311127114,1704924647076,-150.39,0.00036,2]
[311127115,1704924647088,-150.39,0.00036,2]
[311127116,1704924647100,-150.39,0.00036,2]
[311127117,1704924647112,-150.39,0.00036,2]
[311127118,1704924647122,-150.39,0.00036,2]
[311127119,1704924647133,-150.39,0.00036,2]
[311127120,1704924647144,-150.39,0.00036,2]
[311127121,1704924647156,-150.39,0.00036,2]
[311127122,1704924647167,-150.39,0.00036,2]
[311127123,1704924647178,-150.39,0.00036,2]
[311127124,1704924647190,-150.39,0.00036,2]
[311127125,1704924647201,-150.39,0.00036,2]
[311127126,1704924647212,-150.39,0.00036,2]
[311127127,1704924647224,-150.39,0.00036,2]
[311127128,1704924647235,-150.39,0.00036,2]
[311127129,1704924647246,-150.39,0.00036,2]
[311127130,1704924647257,-150.39,0.00036,2]
[311127131,1704924647269,-150.39,0.00036,2]
[311127132,1704924647280,-150.39,0.00036,2]
[311127133,1704924647292,-150.39,0.00036,2]
[311127134,1704924647302,-150.39,0.00036,2]
[311127135,1704924647313,-150.39,0.00036,2]
[311127136,1704924647325,-150.39,0.00036,2]
[311127137,1704924647336,-150.39,0.00036,2]
[311127138,1704924647348,-150.39,0.00036,2]
[311127139,1704924647359,-150.39,0.00036,2]
[311127140,1704924647371,-150.39,0.00036,2]
[311127141,1704924647382,-150.39,0.00036,2]
[311127142,1704924647394,-150.39,0.00036,2]
[311127143,1704924647405,-150.39,0.00036,2]
[311127144,1704924647417,-150.39,0.00036,2]
[311127145,1704924647429,-150.39,0.00036,2]
[311127146,1704924647441,-150.39,0.00036,2]
[311127147,1704924647454,-150.39,0.00036,2]
[311127148,1704924647467,-150.39,0.00036,2]
[311127149,1704924647479,-150.39,0.00036,2]
[311127150,1704924647491,-150.39,0.00036,2]
[311127151,1704924647503,-150.39,0.00036,2]
[311127152,1704924647515,-150.39,0.00036,2]
[311127153,1704924647527,-150.39,0.00036,2]
[311127154,1704924647539,-150.39,0.00036,2]
[311127155,1704924647548,-150.39,0.00036,2]
[311127156,1704924647558,-150.39,0.00036,2]
[311127157,1704924647568,-150.39,0.00036,2]
[311127158,1704924647577,-150.39,0.00036,2]
[311127159,1704924647587,-150.39,0.00036,2]
[311127160,1704924647597,-150.39,0.00036,2]
[311127161,1704924647607,-150.39,0.00036,2]
[311127162,1704924647617,-150.39,0.00036,2]
[311127163,1704924647627,-150.39,0.00036,2]
[311127164,1704924647637,-150.39,0.00036,2]
[311127165,1704924647870,-150.39,0.00036,2]
[311127166,1704924647884,-150.39,0.00036,2]
[311127167,1704924647894,-150.39,0.00036,2]
[311127168,1704924647904,-150.39,0.00036,2]
[311127169,1704924647914,-150.39,0.00036,2]
[311127170,1704924647924,-150.39,0.00036,2]
[311127171,1704924647934,-150.39,0.00036,2]
[311127172,1704924647945,-150.39,0.00036,2]
[311127173,1704924647954,-150.39,0.00036,2]
[311127174,1704924647964,-2350.79152556,0.00036089,2]
[311127175,1704924647974,-2350.79152556,0.00036089,2]
[311127176,1704924647983,-2350.79152556,0.00036089,2]
[311127177,1704924647993,-1234.40111,0.00036098,6]
[311127178,1704924648003,-614.41737333,0.00036104,2]
[311127179,1704924648011,-2350.79152556,0.00036122,2]
[311127180,1704924648021,-1963.396578,0.00036137,2]
[311127181,1704924648030,-1110.307206,0.00036137,2]
[311127182,1704924648040,-150.0,0.00036164,2]
[311127183,1704924648049,-350.14,0.00036192,2]
[311127184,1704924648058,-1234.40111,0.00036198,6]
[311127185,1704924648068,-1000.0,0.000362,2]
[311127186,1704924648077,-150.0,0.00036237,2]
[311127187,1704924648086,-150.0,0.00036239,2]
[311127188,1704924648096,-658.99495069,0.00036264,9]
[311127189,1704924648105,-150.0,0.00036286,2]
[311127190,1704924648114,-1234.40111,0.00036298,6]
[311127191,1704924648123,-150.70065311,0.00036327,2]
[311127192,1704924648132,-150.0,0.00036393,2]
[311127193,1704924648141,-1234.40111,0.00036398,6]
[311127194,1704924648150,-150.0,0.00036414,2]
[311127195,1704924648160,-157.4496188,0.00036438,2]
[311127196,1704924648169,-160.16,0.00036438,2]
[311127197,1704924648179,-157.43,0.00036444,2]
[311127198,1704924648188,-6383.01218548,0.00036473,8]
[311127199,1704924648197,-1161.42372484,0.00036473,8]
[311127200,1704924648208,-6652.27305116,0.00036473,8]
[311127201,1704924648217,-462.33765314,0.00036473,8]
[311127202,1704924648227,-1234.40111,0.00036498,6]
[311127203,1704924648237,-150.0,0.00036516,2]
[311127204,1704924648246,-153.84,0.0003653,2]
[311127205,1704924648256,-150.0,0.00036554,2]
[311127206,1704924648266,-150.0,0.00036573,2]
[311127207,1704924648276,-1963.396578,0.00036589,2]
[311127208,1704924648286,-1110.307206,0.00036589,2]
[311127209,1704924648295,-150.0,0.00036593,2]
[311127210,1704924648305,-1234.40111,0.00036598,6]
[311127211,1704924648314,-2000.0,0.000366,2]
[311127212,1704924648323,-150.0,0.00036602,2]
[311127213,1704924648333,-365.44,0.00036613,15]
[311127214,1704924648342,-658.99495069,0.00036627,9]
[311127215,1704924648351,-403.09346206,0.00036671,4]
[311127216,1704924648360,-1296.72329487,0.00036676,8]
[311127217,1704924648371,-450.94,0.0003668,2]
[311127218,1704924648381,-500.0,0.00036682,2]
[311127219,1704924648390,-1234.40111,0.00036698,6]
[311127220,1704924648401,-150.0,0.00036736,2]
[311127221,1704924648410,-150.0,0.00036739,2]
[311127222,1704924648419,-490.51074753,0.00036753,8]
[311127223,1704924648428,-150.0,0.00036756,2]
[311127224,1704924648438,-200.0,0.00036765,10]
[311127225,1704924648448,-800.0,0.00036765,10]
[311127226,1704924648459,-150.0,0.00036779,2]
[311127227,1704924648469,-1008.43612596,0.00036791,8]
[311127228,1704924648481,-2491.91621305,0.00036797,4]
[311127229,1704924648490,-932.61376497,0.00036797,2]
[311127230,1704924648500,-217.17335148,0.00036798,4]
[311127231,1704924648509,-5099.30032581,0.00036798,4]
[311127232,1704924648518,-155.0,0.00036798,4]
[311127233,1704924648527,-200.3593565,0.00036798,4]
[311127234,1704924648535,-1162.46491798,0.00036798,7]
[311127235,1704924648544,-270.43448935,0.00036798,4]
[311127236,1704924648553,-4544.17962376,0.00036798,4]
[311127237,1704924648561,-223.31726972,0.00036798,4]
[311127238,1704924648570,-1234.40111,0.00036798,6]
[311127239,1704924648578,-150.0,0.00036813,2]
[311127240,1704924648587,-150.70065311,0.00036814,2]
[311127241,1704924648596,-2240.9691688,0.00036828,8]
[311127242,1704924648606,-432.63807629,0.00036834,27]
[311127243,1704924648615,-6136.66949648,0.00036864,9]
[311127244,1704924648624,-202.15627768,0.00036879,8]
[311127245,1704924648633,-2876.0,0.0003689,3]
[311127246,1704924648643,-1234.40111,0.00036898,6]
[311127247,1704924648652,-1000.0,0.000369,2]
[311127248,1704924648662,-3202.84940144,0.000369,2]
[311127249,1704924648671,-288.27555683,0.00036921,8]
[311127250,1704924648681,-1534.01,0.00036924,10]
[311127251,1704924648690,-166.61863526,0.00036925,2]
[311127252,1704924648700,-889.83,0.00036925,10]
[311127253,1704924648716,-1278.34,0.00036925,10]
[311127254,1704924648726,-151.0,0.00036934,7]
[311127255,1704924648735,-211.425443,0.00036934,7]
[311127256,1704924648744,-151.0,0.00036934,7]
[311127257,1704924648753,-151.0,0.00036934,7]
[311127258,1704924648762,-151.0,0.00036934,7]
[311127259,1704924648772,-198.268285,0.00036934,7]
[311127260,1704924648781,-258.377754,0.00036934,7]
[311127261,1704924648791,-258.377754,0.00036934,7]
[311127262,1704924648801,-258.377754,0.00036934,7]
[311127263,1704924648812,-258.377754,0.00036934,7]
[311127264,1704924648821,-152.0,0.00036934,2]